Cogmind - Beta 17 @@@ ROGUE MODE // 2026.08.15 @ 17:56:14 Player: Boatmurdered Result: Destroyed by WA-XF8(R) with Subdweller Beam Cannon Performance ------------- Evolutions (0) 0 Regions Visited (2) 400 Robots Destroyed (33) 165 Value Destroyed (750) 750 Prototype IDs (14) 280 Alien Tech Used (0) 0 Bonus (-7) -7 TOTAL SCORE: 1588 Bonus ------- Friendly Fire -7 Cogmind --------- Core Integrity 0/250 Matter 300/300 Energy 294/315 System Corruption 0% Temperature Cool (30) Movement Rolling (136) Ox3 Location -10/Subcaves Parts ------- > --- POWER (1) -------- Neutrino Core > --- PROPULSION (2) --- Armored Wheel Subdweller Monowheel > --- UTILITY (2) ------ Huge Storage Unit Makeshift Light Armor Plating > --- WEAPON (2) ------- Subdweller Beam Cannon Subdweller Beam Cannon > --- INVENTORY (25) --- Subdweller Power Source Light Treads Light Treads Myomer Leg Armored Wheel Sensor Array Improved Terrain Scanner Phase Shifter Hardened Light Armor Plating Hardened Light Armor Plating Hardened Light Armor Plating Hardened Light Armor Plating Hardened Light Armor Plating Hardened Light Armor Plating Scrap Shield Hacking Suite Makeshift Hacking Suite Self-contained Transmogrifier Power Bank Riot Gun Barrage Gun Barrage Gun Datajack Mining Laser Peak State ------------ > --- POWER ------------ Neutrino Core > --- PROPULSION ------- Armored Wheel Subdweller Monowheel > --- UTILITY ---------- Huge Storage Unit Makeshift Light Armor Plating > --- WEAPON ----------- Subdweller Beam Cannon Subdweller Beam Cannon > --- INVENTORY -------- Subdweller Power Source Light Treads Light Treads Myomer Leg Armored Wheel Sensor Array Improved Terrain Scanner Phase Shifter Hardened Light Armor Plating Hardened Light Armor Plating Hardened Light Armor Plating Hardened Light Armor Plating Hardened Light Armor Plating Hardened Light Armor Plating Scrap Shield Hacking Suite Makeshift Hacking Suite Self-contained Transmogrifier Power Bank Riot Gun Barrage Gun Barrage Gun Datajack Mining Laser [Rating: 26] Favorites ----------- Power Neutrino Core Engine Light Ion Engine Power Core Neutrino Core Propulsion Armored Wheel Treads Light Treads Wheel Armored Wheel Utility Huge Storage Unit Device Seismic Detector Storage Huge Storage Unit Protection Hardened Light Armor Plating Weapon Medium Laser Energy Gun Medium Laser Energy Cannon Subdweller Beam Cannon Ballistic Gun Battle Rifle Special Weapon Mining Laser Build | -11 -10 -10 ------- Run | Yrd Mat Sub Slots Evolved . | . . . Power . | . . . Propulsion . | . . . Utility . | . . . Weapon . | . . . Parts Attached 40 | 7 18 15 Power 5 | 1 2 2 Engine 4 | 1 2 1 Core 1 | . . 1 Reactor . | . . . Propulsion 8 | 2 3 3 Treads 3 | 2 1 . Leg . | . . . Wheel 5 | . 2 3 Hover . | . . . Flight . | . . . Utility 11 | 2 6 3 Device 4 | 1 3 . Storage 4 | 1 3 . Processor . | . . . Hackware . | . . . Protection 3 | . . 3 Artifact . | . . . Weapon 16 | 2 7 7 Energy Gun 4 | 1 2 1 Energy Cannon 3 | . . 3 Ballistic Gun 8 | 1 4 3 Ballistic Cannon . | . . . Launcher . | . . . Special Weapon 1 | . 1 . Impact Weapon . | . . . Slashing Weapon . | . . . Piercing Weapon . | . . . Special Melee Weapon . | . . . Unidentified Prototypes . | . . . Parts Lost 2 | . 1 1 Power 1 | . . 1 Propulsion . | . . . Utility 1 | . 1 . Weapon . | . . . Highest Loss Streak 1 | . 1 1 To Critical Strikes . | . . . Average Backups 18 | 2 12 24 Power 1 | . 1 . Propulsion 3 | . 1 4 Utility 8 | . 5 12 Weapon 3 | 1 3 4 Tool/Special . | . . . Unused Backups 27 | . 4 23 Power 2 | . . 2 Propulsion 3 | . 2 1 Utility 12 | . . 12 Weapon 8 | . 2 6 Tool/Special 2 | . . 2 Average Slot Usage (%) 99 | . 99 99 Engine 7 | . 14 1 Core 6 | . . 12 Treads 10 | . 22 . Wheel 17 | . 5 28 Device 11 | . 13 8 Storage 14 | . 14 14 Protection 2 | . . 5 Energy Gun 7 | . 13 2 Energy Cannon 5 | . . 10 Ballistic Gun 14 | . 13 14 Peak Build Rating 26 | 7 12 26 Average Rating 15 | 5 8 21 On Entrance 6 | . 7 12 Avg Prop Armor Cover (%) . | . . . Naked Turns . | . . . Heaviest Build 115 | 15 88 115 Greatest Support 40 | 40 40 32 Greatest Overweight (x) 7 | 1 7 4 Average Overweight (x) 2 | . 1 3 Largest Inventory Capacity 25 | 8 25 25 Average Capacity 21 | 6 18 25 Most Carried 25 | 5 25 25 Average Carried 18 | 2 12 24 Final Capacity 25 | 8 25 25 Final Carried 25 | 5 25 25 Class Distribution -------------------- 93% | Mutant 6% | Scavenger-Mutant Dominant Class ---------------- Mutant | -10/Materials Mutant | -10/Subcaves Resources | -11 -10 -10 ----------- Run | Yrd Mat Sub Matter Collected 1001 | 288 326 387 Remotely . | . . . Salvage Created 1110 | 135 494 481 Parts 71 | 13 33 25 Haulers Intercepted 2 | . 2 . Recyclers Shooed 1 | 1 . . Parts Field Recycled . | . . . Retrieved Matter . | . . . Parts Self-Destructed . | . . . Prevented . | . . . Parts Restored . | . . . Kills | -11 -10 -10 ------- Run | Yrd Mat Sub Combat Hostiles Destroyed 21 | . 11 10 Guns 15 | . 11 4 Cannons 6 | . . 6 Classes Destroyed 9 | 2 6 1 Builder 1 | . 1 . Tunneler 4 | 4 . . Hauler 2 | . 2 . Recycler 1 | 1 . . Operator 1 | . 1 . Watcher 3 | . 3 . Swarmer 6 | . 6 . Grunt 5 | . 5 . Subdweller 10 | . . 10 Best Kill Streak 5 | 3 5 2 Combat Bots Only 5 | . 5 2 Max Kills in Single Turn 2 | 2 1 1 Gunslinging . | . . . Exploded . | . . . Melee . | . . . Uniques/NPCs Destroyed . | . . . Combat | -11 -10 -10 -------- Run | Yrd Mat Sub Hostile Shots Fired 95 | . 53 42 Missed 17 | . 7 10 Hits 78 | . 46 32 Projectile 78 | . 46 32 Critical Strikes 2 | . 1 1 Damage Taken 1322 | . 539 783 Core 262 | . 63 199 Absorbed by Shields . | . . . Regen/Repaired (Parts) 93 | . 93 . Core Remaining (%) 100 | 100 . . Volleys Fired 115 | 6 71 38 Largest 2 | 2 2 2 Hottest 160 | 70 100 160 Shots Fired 207 | 12 132 63 Gun 169 | 12 123 34 Cannon 22 | . . 22 Launcher . | . . . Special 16 | . 9 7 Kinetic 89 | 6 62 21 Thermal 118 | 6 70 42 Explosive . | . . . Electromagnetic . | . . . Robot Hit Streak 33 | 3 8 33 Robot Miss Streak 4 | 1 4 2 Penetration Max . | . . . Secondary Targets 2 | . 1 1 Max Gunslinging Chain 1 | . 1 1 Shots Hit Robots 124 | 7 71 46 Core Hits 52 | 6 31 15 Critical Kills . | . . . Critical Parts Destroyed . | . . . Critical Strikes 5 | . 4 1 Burn 5 | . 4 1 Melee Attacks . | . . . Impact . | . . . Slashing . | . . . Piercing . | . . . Sneak Attacks . | . . . Combat Hostiles . | . . . Follow-up Attacks . | . . . Damage Inflicted 1895 | 101 869 925 Guns 1393 | 101 864 428 Cannons 497 | . . 497 Explosions . | . . . Melee . | . . . Ramming 5 | . 5 . Kinetic 679 | 52 379 248 Thermal 1211 | 49 485 677 Explosive . | . . . Electromagnetic . | . . . Impact . | . . . Slashing . | . . . Piercing . | . . . Highest Corruption . | . . . Average Corruption . | . . . Corruption Purged . | . . . Corruption Blocked . | . . . Overload Shots . | . . . Overflow Damage . | . . . Projectiles . | . . . Explosions . | . . . Melee . | . . . Knockbacks . | . . . Impact . | . . . Kinetic . | . . . Secondary . | . . . Self-Inflicted Damage . | . . . Shots . | . . . Rammed 1 | . 1 . Targets Rammed 1 | . 1 . Kicked . | . . . Crushed . | . . . Highest Temperature 246 | 18 246 189 Average Temperature 42 | 9 42 51 Received Heat Transfer 333 | . 210 123 Siege Activations . | . . . Martial Activations . | . . . Shielding Activations . | . . . Robots Disrupted . | . . . Combat Hostiles . | . . . Robots Corrupted . | . . . Combat Hostiles . | . . . Parts Fried . | . . . Impact Corruptions . | . . . Robots Melted . | . . . Combat Hostiles . | . . . Parts Melted 2 | . 1 1 Heat Transferred 3035 | 148 1739 1148 Parts Sabotaged . | . . . Parts Stolen . | . . . Parts Stripped . | . . . Power Chain Reactions . | . . . Alert | -11 -10 -10 ------- Run | Yrd Mat Sub Maximum Alert Level 1 | . 1 . Low Security (%) 95 | 100 94 . Level 1 4 | . 5 . Level 2 . | . . . Level 3 . | . . . Level 4 . | . . . Level 5 . | . . . High Security . | . . . Max Security . | . . . Peak Influence 224 | 15 224 . Initial . | . . . Average 58 | 2 61 . Influence Increases 520 | 25 495 . Destroy 0b10 Robot/C 220 | . 220 . Destroy 0b10 Robot/NC 60 | 25 35 . Destroy Leader 50 | . 50 . Successful Hack 32 | . 32 . Select Force Hacks 60 | . 60 . Destroy Structure 8 | . 8 . Lose Combat Pursuer 90 | . 90 . Influence Decreases 520 | 25 434 61 Entered New Map 30 | . . 30 Time Decay 490 | 25 434 31 Squads Dispatched 3 | . 3 . Investigation 2 | . 2 . Extermination . | . . . Reinforcement 1 | . 1 . Assault . | . . . Garrison . | . . . Intercept . | . . . Searches Triggered . | . . . Construction Impeded . | . . . Haulers Reinforced . | . . . Active Scanning Responses . | . . . Cargo Convoy Interrupts . | . . . Stealth | -11 -10 -10 --------- Run | Yrd Mat Sub Distress Signals . | . . . Communications Jammed . | . . . Distress Signals . | . . . Times Spotted 40 | . 29 11 Peak Tracking Total 5 | . 5 2 Tactical Retreats 3 | . 3 . Traps | -11 -10 -10 ------- Run | Yrd Mat Sub Traps Triggered 2 | . 1 1 Indirectly . | . . . Trap Hack Attempts . | . . . Triggered . | . . . Disarmed . | . . . Reprogrammed . | . . . Reused . | . . . Traps Extracted . | . . . Installed . | . . . Triggered . | . . . Machines | -11 -10 -10 ---------- Run | Yrd Mat Sub Machines Disabled 1 | . . 1 Max in Single Turn 1 | . . 1 Machines Repaired . | . . . Machines Dismantled . | . . . Machines Sabotaged . | . . . Overloaded Fab Kills . | . . . Hacking | -11 -10 -10 --------- Run | Yrd Mat Sub Machines Accessed 11 | . 10 1 Terminals 7 | . 7 . Fabricators . | . . . Repair Stations 1 | . 1 . Recycling Units 2 | . 2 . Scanalyzers . | . . . Garrison Access . | . . . Total Hacks 39 | . 38 1 Successful 19 | . 18 1 Failed 20 | . 20 . Catastrophic 1 | . 1 . Database Lockouts . | . . . Manual 32 | . 32 . Terminals 28 | . 28 . Fabricators . | . . . Repair Stations 2 | . 2 . Recycling Units 8 | . 8 . Scanalyzers . | . . . Garrison Access . | . . . Terminal Hacks 1 | . . 1 Proto ID Catalog 1 | . . 1 Fabricator Hacks . | . . . Repair Station Hacks 2 | . 2 . Scan Component 1 | . 1 . Repair 1 | . 1 . Recycling Unit Hacks 3 | . 3 . Report Inventory 2 | . 2 . Retrieve Components 1 | . 1 . Scanalyzer . | . . . Garrison Access Hacks . | . . . Unauthorized Hacks 13 | . 13 . Terminals 9 | . 9 . Assimilate 1 | . 1 . Botnet 2 | . 2 . Operators 1 | . 1 . Skim 5 | . 5 . Fabricators . | . . . Repair Stations . | . . . Recycling Units 4 | . 4 . Reject 1 | . 1 . Mask 1 | . 1 . Tunnel 2 | . 2 . Scanalyzers . | . . . Garrison Access . | . . . Data Cores Recovered . | . . . Used . | . . . Hacking Detections 10 | . 10 . Full Trace Events 1 | . 1 . Feedback Events . | . . . Feedback Blocked . | . . . Robot Schematics Acquired . | . . . Robots Built . | . . . Authchips . | . . . Time . | . . . Total Robot Build Rating . | . . . Part Schematics Acquired . | . . . Parts Built . | . . . Authchips . | . . . Time . | . . . Total Part Build Rating . | . . . Part Studies Acquired . | . . . Parts Repaired 1 | . 1 . Time 26 | . 26 . Parts Recycled . | . . . Recycled Matter . | . . . Retrieved Matter . | . . . Retrieved Components 2 | . 2 . Parts Scanalyzed . | . . . Part Schematics Acquired . | . . . Parts Damaged . | . . . Bothacking | -11 -10 -10 ------------ Run | Yrd Mat Sub Used RIF Installer . | . . . Robots Hacked . | . . . Non-combat . | . . . Combat . | . . . Robot Hacks Applied . | . . . Relay Couplers Released . | . . . Fabnet Peak Effective % . | . . . Robots Rewired . | . . . Allies Hacked . | . . . Hacks Repelled . | . . . Allies | -11 -10 -10 -------- Run | Yrd Mat Sub Total Allies . | . . . Largest Group . | . . . Highest-Rated Group . | . . . Highest-Rated Ally . | . . . Total Orders . | . . . Ally Attacks . | . . . Total Damage . | . . . Kills . | . . . Allies Corrupted . | . . . Allies Melted . | . . . Intel | -11 -10 -10 ------- Run | Yrd Mat Sub Active Infowar (turns) 4851 | 45 2850 1956 Sensors 1082 | . 1082 . Terrain 330 | . 330 . Seismic 3439 | 45 1438 1956 Robot Analysis Total . | . . . Derelict Logs Recovered 3 | . . 3 Drone Launches . | . . . Drone Recoveries . | . . . Exploration | -11 -10 -10 ------------- Run | Yrd Mat Sub Turns Passed 6198 | 157 2878 3163 Spaces Moved 2737 | 76 951 1710 Core 3 | 3 . . Treads 690 | 73 617 . Legs . | . . . Wheels 2044 | . 334 1710 Hover . | . . . Flight . | . . . Fastest Speed 50 | 50 135 135 Average Speed 158 | 156 177 147 Slowest Speed 240 | 160 240 150 Overloaded Moves . | . . . Propulsion Burnouts . | . . . Robots Hopped . | . . . Potential Cave-ins . | . . . Cave-ins Triggered . | . . . Exploration Rate (%) 62 | 4 98 85 Regions Visited 2 Branch Regions 1 Pre-discovered Areas 2 | . 2 . Known Exits Taken 1 | . 1 . Unknown Exits Taken 1 | 1 . . Scrap Searched 14 | . . 14 Spaces Dug 6 | . 6 . Terrain Destroyed 8 | . 6 2 Melee . | . . . Projectile 8 | . 6 2 AOE . | . . . Terrain Rammed . | . . . Walls Destroyed . | . . . Machines Disabled . | . . . Actions | -11 -10 -10 --------- Run | Yrd Mat Sub Total 4367 | 99 1988 2280 Wait 1370 | 6 895 469 Move 2735 | 75 950 1710 Hop . | . . . Pick Up 48 | 5 28 15 Fast Attach 12 | 7 2 3 Attach 3 | . 1 2 Detach . | . . . Swap 44 | . 25 19 Drop 39 | . 15 24 Fire 115 | 6 71 38 Melee . | . . . Ram . | . . . Kick . | . . . Crush 1 | . 1 . Escape Stasis . | . . . Rewire . | . . . Trap . | . . . Miscellaneous . | . . . Route ------- -11/Scrapyard -10/Materials (discovered 5 exits: *Mat x3 / [*Min] / *Sub) -10/Subcaves (discovered 3 exits: *Mat x2 / Rec) History --------- Turn | Location | Event 17 | -11/Scrapyard | Discovered new exit (range 14) 158 | -11/Scrapyard | Entered Materials 206 | -10/Materials | Discovered new exit (range 7) 304 | -10/Materials | Build established: Mutant 335 | -10/Materials | Discovered new exit (range 10) 1096 | -10/Materials | Discovered new exit (range 16) 1739 | -10/Materials | Discovered new exit (range 16) 2791 | -10/Materials | Learned 2 Storage zone layouts 2843 | -10/Materials | Learned location of 2 exits from Mines 2861 | -10/Materials | Learned 4 Recycling zone layouts 2871 | -10/Materials | Learned location of 2 exits from Subcaves 2883 | -10/Materials | Discovered new exit (range 6) 2890 | -10/Materials | Identified exit to Subcaves 2890 | -10/Materials | Identified exit to Materials 2959 | -10/Materials | Repaired Lgt. Treads 3036 | -10/Materials | Entered Subcaves 3037 | -10/Subcaves | Approached by a straggling Scientist 3037 | -10/Subcaves | Identified exit to Materials 3050 | -10/Subcaves | Shifting Twisted Machinery released Battle Rifle 3977 | -10/Subcaves | Shifting Twisted Machinery released Battle Rifle 4146 | -10/Subcaves | Core integrity fell below 50% 4233 | -10/Subcaves | Shifting Twisted Machinery released Flamer 4254 | -10/Subcaves | Shifting Twisted Machinery released Barrage Gun 4332 | -10/Subcaves | Identified exit to Recycling 4921 | -10/Subcaves | Visited 4L-MR0's lab 4934 | -10/Subcaves | Found Prototype Device 4944 | -10/Subcaves | Found Power Bank 5164 | -10/Subcaves | Learned Materials emergency access door positions 5861 | -10/Subcaves | Shifting Twisted Machinery released Sub. Power Source 5992 | -10/Subcaves | Learned Materials terminal intel 6003 | -10/Subcaves | Core integrity fell below 20% 6187 | -10/Subcaves | Disturbed a concealed Subdweller 6199 | -10/Subcaves | Destroyed by WA-XF8(R) with Subdweller Beam Cannon Last Messages --------------- 06052_ Found 49 Matter. 06055_ Dropped Hrd. Light Armor Plating. 06058_ Searching scrap... 06058_ Found Sub. Machine Gun. 06058_ Found 54 Matter. 06059_ Acquired 10 matter. 06059_ Searching scrap... 06059_ Found Sub. Beam Cannon. 06059_ Found 31 Matter. 06062_ Dropped Sub. Beam Cannon. 06079_ Subatomizers dissect the Sub. Machine Gun. 06184_ Searching scrap... 06184_ Found Sub. Optics. 06184_ Found Sub. Power Source. 06184_ Found 38 Matter. 06185_ Acquired 10 matter. 06186_ Searching scrap... 06186_ Found Hvy. Riot Gun. 06186_ Found 63 Matter. Map ----- +----------------------------------------------------+ | ####### ??### ### ##???# ## ##### | | ## #?## #### ## #???## #### #???## | | ## ##?## ## ## ##??## #??### #????# | | #?# ####### #####??## ##????## #????? | | ### ## #?# ## ##?????# ##??????###????? | | # ## #### ##????# #??????????????? | | ### #??## ###### #??????????????? | | ####?## ##???## # # #??????????????? | | ##?????## ##????# #??????????????? | | ###?####### #????## #??????????????? | | "#??# ##?????## ### ##??????????????? | | #??# ##??????#### ### ##???????????????? | | #?## #????????# ## ##???????????????? | | ### ### #??????## #???????????????? | | #?## #??????# ####???????????????? | | " ####???###??????########??????????????????? | | ### ##????????????????????????????????????????? | | ??## #????????????????????????????????????????? | | ???## #????????????????????????????????????????? | | #???#####????????????????????????????????????????? | | #????????????????????????????????????????????????? | | #????????????????????????????????????????????????? | | #?????????????????????????????????????????######## | | ?????????????????????????????????????????##!"""" # | | #????????????????????#######?????????????#%& "# | | #????????????????????#<[!@ #?????????????#" !* | | #????????????????????#%%##R#?????????????# " # #% | | #????????????????????#### #?????????????##" %## | | ?????????????????????###" ##??????????????### !### | | ?????????????????????# ## ##?????????????##%% | | ?????????????????????# " "#####?????????#] [ ### | | ?????????????????????# ##????????#" # | | ?????????????????????# #????????## | | ????????????????????# ## #?????????##"" ## | | ????????????????????## ## ##????????#######" | | ?????????????????????##?## ###????????## ### | | ????????????????????????# ##?????????## | | ???????????????????????### ##??????#### #### | | ??????????????????????## ##???### ## #?# | | ??????????????????????# ##### ### #?# | | ??????????????????????# ## ######?###### | | ?????????????????????## ### #?????????## | | ????????????????????## #?## ##?######### | | ????????????????????# #??# ##?## | | ????????????????????# #??# #??# | | ????????????????????## ##??# #??# # | | ?????????????????????# ##???## ##?# ## # | | ?????????????????????# #?####?## #?## ### # | | ?????????????????????##?## #??## #####??# | | ????????????????????????# ##### #????# | +----------------------------------------------------+ Best States ------------- Heat Dissipation 25 Energy Generation 19 Energy Capacity 315 Matter Stores 300 Matter Capacity 300 Sight Range 16 Robot Scan Range 14 Terrain Scan Range 16 Terrain Scan Density 10 Armor Coverage 150 Evasion (%) 40 Recoil Reduction 2 Item Schematics ----------------- None Robot Schematics ------------------ None Fabricated ------------ Nothing Repaired ---------- Lgt. Treads | 33% | -10/Materials Studied --------- None Alien Tech Used ----------------- None Achievements -------------- None Challenges ------------ None Game ------ Seed BoltAdvancedMiniperforator Manual? 0 Play Time 00:59:04 Cumulative 37.8 hours Start 2026.08.15 @ 14:09:40 End 2026.08.15 @ 17:56:14 Sessions 1 Manual Loads 0 Difficulty Rogue Special Mode None Game No. 22 Rogue 22 Adventurer 0 Explorer 0 Win Type - Total 0 Types 0/0/0/0/0/0/0/0/0/0 Lore% 39 Gallery% 28 Achievement% 31 Wizard Run 0 Options --------- Layout 1 ASCII 0 Keyboard 0 Movement Mouse Keybinds 0 Fullscreen 1 Font 24/Smallcaps Map View 50x35 Zoom Use 0% Tactical HUD 1 Map Filters NONE Filters NONE Steam 1 RUN: d87541aa-fab5-4199-b1c1-716541c53052